[Event "*** Titled Tuesday Blitz"]
[Site "Chess.com"]
[Date "2021.04.27"]
[Round "1"]
[White "Pelopidass"]
[Black "campomania3"]
[Result "1-0"]
[WhiteElo "2552"]
[BlackElo "2221"]
[TimeControl "180+1"]
[EndTime "10:04:52 PDT"]
[Termination "Pelopidass won by resignation"]

1. d4 {[%clk 0:02:58.8]} 1... d5 {[%clk 0:02:59.7]} 2. c4 {[%clk 0:02:57.3]}
2... c6 {[%clk 0:02:59.7]} 3. Nf3 {[%clk 0:02:57.3]} 3... Nf6 {[%clk 0:02:59]}
4. e3 {[%clk 0:02:57.9]} 4... g6 {[%clk 0:02:58.5]} 5. Nc3 {[%clk 0:02:56.2]}
5... Bg7 {[%clk 0:02:59]} 6. cxd5 {[%clk 0:02:54.6]} 6... cxd5 {[%clk
0:02:56.9]} 7. Bd3 {[%clk 0:02:54]} 7... O-O {[%clk 0:02:56.5]} 8. O-O {[%clk
0:02:53.3]} 8... Nc6 {[%clk 0:02:56.8]} 9. h3 {[%clk 0:02:52.3]} 9... a6 {[%clk
0:02:52.9]} 10. a3 {[%clk 0:02:52.6]} 10... b5 {[%clk 0:02:52.9]} 11. Bd2 {[%clk
0:02:51.3]} 11... Bb7 {[%clk 0:02:52]} 12. Rc1 {[%clk 0:02:51.3]} 12... Rc8
{[%clk 0:02:51.2]} 13. Na2 {[%clk 0:02:51.1]} 13... Nd7 {[%clk 0:02:45.7]} 14.
a4 {[%clk 0:02:34.7]} 14... e5 {[%clk 0:02:04]} 15. axb5 {[%clk 0:02:29.1]}
15... axb5 {[%clk 0:02:01.1]} 16. Bxb5 {[%clk 0:02:26.2]} 16... exd4 {[%clk
0:01:46.7]} 17. Bxc6 {[%clk 0:02:25.9]} 17... Bxc6 {[%clk 0:01:43.7]} 18. Nxd4
{[%clk 0:02:25.2]} 18... Bb7 {[%clk 0:01:39.8]} 19. Rxc8 {[%clk 0:02:22.7]}
19... Qxc8 {[%clk 0:01:39.2]} 20. Nc3 {[%clk 0:02:19.9]} 20... Bxd4 {[%clk
0:01:29.2]} 21. exd4 {[%clk 0:02:20.8]} 21... Nf6 {[%clk 0:01:22]} 22. Re1
{[%clk 0:02:13.7]} 22... Re8 {[%clk 0:01:21]} 23. Rxe8+ {[%clk 0:02:00.8]} 23...
Nxe8 {[%clk 0:01:18]} 24. Qb3 {[%clk 0:01:56.1]} 24... Nd6 {[%clk 0:01:12.1]}
25. Nxd5 {[%clk 0:01:48.2]} 25... Bxd5 {[%clk 0:01:06.4]} 26. Qxd5 {[%clk
0:01:49.1]} 26... Qc2 {[%clk 0:00:54.5]} 27. Qxd6 {[%clk 0:01:42.5]} 27... Qxd2
{[%clk 0:00:51.7]} 28. Qb8+ {[%clk 0:01:43.1]} 28... Kg7 {[%clk 0:00:51]} 29.
Qe5+ {[%clk 0:01:43.6]} 29... Kg8 {[%clk 0:00:50]} 30. d5 {[%clk 0:01:43.5]} 1-0

[Event "*** Titled Tuesday Blitz"]
[Site "Chess.com"]
[Date "2021.04.27"]
[Round "1"]
[White "AungTZ"]
[Black "Kislov_Oleg"]
[Result "1-0"]
[WhiteElo "2154"]
[BlackElo "2496"]
[TimeControl "180+1"]
[EndTime "10:04:57 PDT"]
[Termination "AungTZ won by resignation"]

1. e4 {[%clk 0:02:55.1]} 1... e6 {[%clk 0:03:00.2]} 2. d4 {[%clk 0:02:54.5]}
2... d5 {[%clk 0:03:00.8]} 3. Nc3 {[%clk 0:02:53.2]} 3... Nf6 {[%clk 0:02:59.8]}
4. Bg5 {[%clk 0:02:50.5]} 4... dxe4 {[%clk 0:02:59.3]} 5. Nxe4 {[%clk
0:02:49.9]} 5... Be7 {[%clk 0:02:59.7]} 6. Bxf6 {[%clk 0:02:49]} 6... gxf6
{[%clk 0:03:00.2]} 7. Nf3 {[%clk 0:02:49.4]} 7... b6 {[%clk 0:03:00.6]} 8. Bd3
{[%clk 0:02:48.3]} 8... Bb7 {[%clk 0:03:01]} 9. Qe2 {[%clk 0:02:48.3]} 9... c6
{[%clk 0:03:01.2]} 10. O-O-O {[%clk 0:02:47.9]} 10... Qc7 {[%clk 0:03:01.7]} 11.
Kb1 {[%clk 0:02:40.7]} 11... Nd7 {[%clk 0:03:01.8]} 12. Rhe1 {[%clk 0:02:37.2]}
12... O-O-O {[%clk 0:03:01.8]} 13. g3 {[%clk 0:02:35.9]} 13... h6 {[%clk
0:02:59]} 14. c4 {[%clk 0:02:29.1]} 14... f5 {[%clk 0:02:55.1]} 15. Nc3 {[%clk
0:02:26.9]} 15... Bf6 {[%clk 0:02:55.4]} 16. Ne5 {[%clk 0:02:14.7]} 16... Nxe5
{[%clk 0:02:45.8]} 17. dxe5 {[%clk 0:02:13.8]} 17... Be7 {[%clk 0:02:46.4]} 18.
f4 {[%clk 0:02:12.3]} 18... h5 {[%clk 0:02:45.1]} 19. a3 {[%clk 0:02:01.1]}
19... a6 {[%clk 0:02:38.2]} 20. Bc2 {[%clk 0:01:44.4]} 20... c5 {[%clk
0:02:15.8]} 21. Rxd8+ {[%clk 0:01:40.4]} 21... Bxd8 {[%clk 0:02:12.1]} 22. Rd1
{[%clk 0:01:37.5]} 22... Be7 {[%clk 0:02:12]} 23. Rd2 {[%clk 0:01:33.5]} 23...
Qc6 {[%clk 0:02:09.7]} 24. Bd1 {[%clk 0:01:17.1]} 24... Qh1 {[%clk 0:01:54.8]}
25. Ka2 {[%clk 0:01:16.2]} 25... Bc6 {[%clk 0:01:45.9]} 26. Qe3 {[%clk
0:01:09.9]} 26... Qf1 {[%clk 0:01:39.6]} 27. Be2 {[%clk 0:01:06.9]} 27... Qh1
{[%clk 0:01:33.8]} 28. Bd1 {[%clk 0:01:06.4]} 28... Kc7 {[%clk 0:01:33.6]} 29.
Ba4 {[%clk 0:00:57]} 29... Qe4 {[%clk 0:01:29]} 30. Nxe4 {[%clk 0:00:55.4]} 1-0

[Event "*** Titled Tuesday Blitz"]
[Site "Chess.com"]
[Date "2021.04.27"]
[Round "1"]
[White "MaevskiyNikolay"]
[Black "jefferyx"]
[Result "0-1"]
[WhiteElo "2470"]
[BlackElo "2988"]
[TimeControl "180+1"]
[EndTime "10:04:59 PDT"]
[Termination "jefferyx won by resignation"]

1. Nf3 {[%clk 0:03:00.9]} 1... g6 {[%clk 0:02:58]} 2. d4 {[%clk 0:02:55.6]} 2...
Bg7 {[%clk 0:02:58.9]} 3. c4 {[%clk 0:02:55.3]} 3... d6 {[%clk 0:02:58.7]} 4.
Nc3 {[%clk 0:02:55.4]} 4... e5 {[%clk 0:02:56.8]} 5. g3 {[%clk 0:02:52.3]} 5...
Nd7 {[%clk 0:02:48.1]} 6. Bg2 {[%clk 0:02:52.2]} 6... Ne7 {[%clk 0:02:47.4]} 7.
O-O {[%clk 0:02:51.7]} 7... O-O {[%clk 0:02:47]} 8. e4 {[%clk 0:02:51.1]} 8...
exd4 {[%clk 0:02:44.9]} 9. Nxd4 {[%clk 0:02:50.9]} 9... Nc6 {[%clk 0:02:41.4]}
10. Be3 {[%clk 0:02:49.9]} 10... Nde5 {[%clk 0:02:35.1]} 11. b3 {[%clk
0:02:46.2]} 11... Ng4 {[%clk 0:02:20.8]} 12. Nxc6 {[%clk 0:02:37.6]} 12... Nxe3
{[%clk 0:02:20.1]} 13. Nxd8 {[%clk 0:02:35.4]} 13... Nxd1 {[%clk 0:02:19]} 14.
Raxd1 {[%clk 0:02:31.7]} 14... Bxc3 {[%clk 0:02:17.1]} 15. Nxb7 {[%clk
0:02:14.3]} 15... Bxb7 {[%clk 0:02:16]} 16. Rd3 {[%clk 0:01:39.7]} 16... Bb4
{[%clk 0:02:14.7]} 17. f3 {[%clk 0:01:39.3]} 17... a5 {[%clk 0:02:12.6]} 18. Rb1
{[%clk 0:01:37.6]} 18... Bc6 {[%clk 0:02:09.4]} 19. a4 {[%clk 0:01:36.6]} 19...
Rab8 {[%clk 0:02:06.9]} 20. Rbd1 {[%clk 0:01:35.4]} 20... f5 {[%clk 0:02:00.4]}
21. exf5 {[%clk 0:01:34.1]} 21... Rxf5 {[%clk 0:02:00.4]} 22. f4 {[%clk
0:01:34.5]} 22... Bc5+ {[%clk 0:01:59.6]} 23. Kf1 {[%clk 0:01:34.6]} 23... Bxg2+
{[%clk 0:02:00.4]} 24. Kxg2 {[%clk 0:01:34.7]} 24... Rff8 {[%clk 0:01:58.1]} 25.
Re1 {[%clk 0:01:33.8]} 25... Rfe8 {[%clk 0:01:57.7]} 26. Rxe8+ {[%clk
0:01:32.5]} 26... Rxe8 {[%clk 0:01:58.6]} 27. Kf3 {[%clk 0:01:30.5]} 27... Kf7
{[%clk 0:01:58.5]} 28. h4 {[%clk 0:01:29.9]} 28... h5 {[%clk 0:01:57.9]} 29. g4
{[%clk 0:01:29]} 29... hxg4+ {[%clk 0:01:57.6]} 30. Kxg4 {[%clk 0:01:29.4]}
30... Kf6 {[%clk 0:01:58.5]} 31. Rf3 {[%clk 0:01:26.5]} 31... Re3 {[%clk
0:01:55]} 32. Rf1 {[%clk 0:01:25.3]} 32... Rxb3 {[%clk 0:01:42.6]} 33. f5 {[%clk
0:01:24.7]} 33... Rb4 {[%clk 0:01:30.8]} 34. fxg6+ {[%clk 0:01:24.4]} 34... Kxg6
{[%clk 0:01:31.7]} 35. h5+ {[%clk 0:01:24.3]} 35... Kg7 {[%clk 0:01:32.2]} 36.
Kg5 {[%clk 0:01:16.5]} 36... Be3+ {[%clk 0:01:31.1]} 37. Kf5 {[%clk 0:01:16.3]}
37... Rxc4 {[%clk 0:01:31]} 38. Ke6 {[%clk 0:01:15.3]} 38... Kh6 {[%clk
0:01:28.6]} 39. Rf5 {[%clk 0:01:15]} 39... Bb6 {[%clk 0:01:27.4]} 0-1

[Event "*** Titled Tuesday Blitz"]
[Site "Chess.com"]
[Date "2021.04.27"]
[Round "1"]
[White "Vaathi_Coming"]
[Black "Tactictic"]
[Result "1-0"]
[WhiteElo "2883"]
[BlackElo "2447"]
[TimeControl "180+1"]
[EndTime "10:05:00 PDT"]
[Termination "Vaathi_Coming won by resignation"]

1. Nf3 {[%clk 0:03:00.9]} 1... d5 {[%clk 0:02:57.1]} 2. b3 {[%clk 0:03:01.8]}
2... Nf6 {[%clk 0:02:55.8]} 3. Bb2 {[%clk 0:03:02.4]} 3... c5 {[%clk 0:02:55.7]}
4. e3 {[%clk 0:03:02.7]} 4... Nc6 {[%clk 0:02:55.6]} 5. Bb5 {[%clk 0:03:02.6]}
5... Bf5 {[%clk 0:02:52.9]} 6. O-O {[%clk 0:02:58.9]} 6... e6 {[%clk 0:02:52]}
7. d3 {[%clk 0:02:58.2]} 7... Bd6 {[%clk 0:02:50.8]} 8. Ne5 {[%clk 0:02:55.9]}
8... Qc7 {[%clk 0:02:36.1]} 9. f4 {[%clk 0:02:55.4]} 9... O-O {[%clk 0:02:30]}
10. Bxc6 {[%clk 0:02:55.4]} 10... bxc6 {[%clk 0:02:30.9]} 11. Nd2 {[%clk
0:02:56]} 11... Nd7 {[%clk 0:02:22.4]} 12. Nxd7 {[%clk 0:02:43.3]} 12... Qxd7
{[%clk 0:02:21.3]} 13. e4 {[%clk 0:02:44]} 13... Bg6 {[%clk 0:02:18.6]} 14. Qe2
{[%clk 0:02:27.6]} 14... Rfe8 {[%clk 0:02:03.5]} 15. Rae1 {[%clk 0:02:19.1]}
15... f6 {[%clk 0:01:56.4]} 16. Qf2 {[%clk 0:02:10.9]} 16... Kh8 {[%clk
0:01:41.4]} 17. Ba3 {[%clk 0:02:03.6]} 17... c4 {[%clk 0:01:00]} 18. Bxd6 {[%clk
0:02:04.5]} 18... Qxd6 {[%clk 0:01:00.5]} 19. bxc4 {[%clk 0:02:04.8]} 19... Qa3
{[%clk 0:00:56.6]} 20. f5 {[%clk 0:01:41.5]} 20... exf5 {[%clk 0:00:47.6]} 21.
exd5 {[%clk 0:01:40.8]} 21... cxd5 {[%clk 0:00:44.2]} 22. cxd5 {[%clk
0:01:41.7]} 22... Qxa2 {[%clk 0:00:40.9]} 23. Nc4 {[%clk 0:01:41.7]} 23... Bf7
{[%clk 0:00:27.1]} 24. Ra1 {[%clk 0:01:39.6]} 1-0

[Event "*** Titled Tuesday Blitz"]
[Site "Chess.com"]
[Date "2021.04.27"]
[Round "1"]
[White "ariosp"]
[Black "gross-aleks"]
[Result "0-1"]
[WhiteElo "2216"]
[BlackElo "2549"]
[TimeControl "180+1"]
[EndTime "10:05:07 PDT"]
[Termination "gross-aleks won on time"]

1. e4 {[%clk 0:02:43.7]} 1... e5 {[%clk 0:02:58.6]} 2. Nf3 {[%clk 0:02:42.5]}
2... Nc6 {[%clk 0:02:58.5]} 3. Bc4 {[%clk 0:02:40.7]} 3... Bc5 {[%clk 0:02:57]}
4. b4 {[%clk 0:02:40]} 4... Bxb4 {[%clk 0:02:56.4]} 5. c3 {[%clk 0:02:38.9]}
5... Ba5 {[%clk 0:02:56.5]} 6. d4 {[%clk 0:02:35.8]} 6... exd4 {[%clk
0:02:55.3]} 7. O-O {[%clk 0:02:35.9]} 7... d3 {[%clk 0:02:46.1]} 8. Qb3 {[%clk
0:02:31.8]} 8... Qe7 {[%clk 0:02:42.5]} 9. Ba3 {[%clk 0:02:29.5]} 9... d6 {[%clk
0:02:42]} 10. e5 {[%clk 0:02:25.2]} 10... Be6 {[%clk 0:02:40.6]} 11. exd6 {[%clk
0:02:22.7]} 11... cxd6 {[%clk 0:02:35.9]} 12. Re1 {[%clk 0:02:11.8]} 12... O-O-O
{[%clk 0:02:34.7]} 13. Bxe6+ {[%clk 0:02:08]} 13... fxe6 {[%clk 0:02:34.3]} 14.
Rxe6 {[%clk 0:02:07.4]} 14... Qf7 {[%clk 0:02:31.7]} 15. Nbd2 {[%clk 0:02:00.2]}
15... d5 {[%clk 0:02:31.2]} 16. Rb1 {[%clk 0:01:44.1]} 16... Bb6 {[%clk
0:02:30.5]} 17. Rbe1 {[%clk 0:01:31.2]} 17... Nf6 {[%clk 0:02:23.7]} 18. Nd4
{[%clk 0:01:17.6]} 18... Rhe8 {[%clk 0:02:04.8]} 19. Rxe8 {[%clk 0:00:51.6]}
19... Rxe8 {[%clk 0:02:04.1]} 20. Rxe8+ {[%clk 0:00:46.7]} 20... Qxe8 {[%clk
0:02:03.5]} 21. N2f3 {[%clk 0:00:37.9]} 21... Bxd4 {[%clk 0:02:01.3]} 22. cxd4
{[%clk 0:00:35.8]} 22... Qe2 {[%clk 0:02:01.3]} 23. Bc1 {[%clk 0:00:18.9]} 23...
Ne4 {[%clk 0:01:58.8]} 24. Be3 {[%clk 0:00:09.3]} 24... d2 {[%clk 0:01:56.2]}
0-1

[Event "*** Titled Tuesday Blitz"]
[Site "Chess.com"]
[Date "2021.04.27"]
[Round "1"]
[White "GM_dmitrij"]
[Black "Leo_C"]
[Result "1-0"]
[WhiteElo "2953"]
[BlackElo "2461"]
[TimeControl "180+1"]
[EndTime "10:05:12 PDT"]
[Termination "GM_dmitrij won by resignation"]

1. Nf3 {[%clk 0:03:00.8]} 1... d5 {[%clk 0:02:59.6]} 2. g3 {[%clk 0:02:59.5]}
2... Nd7 {[%clk 0:02:59.6]} 3. d4 {[%clk 0:02:58.6]} 3... Nb6 {[%clk 0:02:59.2]}
4. a4 {[%clk 0:02:58.1]} 4... a5 {[%clk 0:02:58.2]} 5. Bg2 {[%clk 0:02:58.6]}
5... Bf5 {[%clk 0:02:58.1]} 6. O-O {[%clk 0:02:58.4]} 6... e6 {[%clk 0:02:58.5]}
7. Bg5 {[%clk 0:02:51.9]} 7... Nf6 {[%clk 0:02:57.4]} 8. Nbd2 {[%clk 0:02:49.7]}
8... h6 {[%clk 0:02:56.5]} 9. Bxf6 {[%clk 0:02:45.3]} 9... Qxf6 {[%clk
0:02:55.8]} 10. Ne5 {[%clk 0:02:45.8]} 10... Bd6 {[%clk 0:02:47.5]} 11. e4
{[%clk 0:02:38.8]} 11... dxe4 {[%clk 0:02:44.7]} 12. Nxe4 {[%clk 0:02:39.7]}
12... Qe7 {[%clk 0:02:41.9]} 13. Nd3 {[%clk 0:02:23.5]} 13... O-O {[%clk
0:02:29.8]} 14. c3 {[%clk 0:02:23.6]} 14... c6 {[%clk 0:02:27.4]} 15. Nxd6
{[%clk 0:02:13.1]} 15... Qxd6 {[%clk 0:02:27]} 16. Nc5 {[%clk 0:02:14]} 16...
Qc7 {[%clk 0:02:23.5]} 17. Qb3 {[%clk 0:02:12.5]} 17... Rab8 {[%clk 0:02:21.6]}
18. Rfe1 {[%clk 0:02:10.9]} 18... Nd7 {[%clk 0:02:20.9]} 19. Qc4 {[%clk
0:02:02.2]} 19... Rfd8 {[%clk 0:02:14.8]} 20. h4 {[%clk 0:01:55.1]} 20... b5
{[%clk 0:02:11.5]} 21. Qe2 {[%clk 0:01:28.1]} 21... Nxc5 {[%clk 0:01:56.1]} 22.
dxc5 {[%clk 0:01:29]} 22... b4 {[%clk 0:01:53.5]} 23. Rad1 {[%clk 0:01:20.4]}
23... bxc3 {[%clk 0:01:48.2]} 24. bxc3 {[%clk 0:01:21.3]} 24... Rd5 {[%clk
0:01:32.3]} 25. Bxd5 {[%clk 0:01:15.8]} 25... cxd5 {[%clk 0:01:32.4]} 26. Qe5
{[%clk 0:01:16.3]} 26... Qxe5 {[%clk 0:01:30]} 27. Rxe5 {[%clk 0:01:16.1]} 27...
Bc2 {[%clk 0:01:26.1]} 28. Rc1 {[%clk 0:01:08.8]} 28... Be4 {[%clk 0:01:25.8]}
29. c4 {[%clk 0:01:04.2]} 29... f6 {[%clk 0:01:24.4]} 30. Rxe6 {[%clk 0:01:03]}
30... dxc4 {[%clk 0:01:12.2]} 31. Rxe4 {[%clk 0:01:02.3]} 31... Rb4 {[%clk
0:01:11.3]} 32. Rexc4 {[%clk 0:01:01.8]} 1-0

[Event "*** Titled Tuesday Blitz"]
[Site "Chess.com"]
[Date "2021.04.27"]
[Round "1"]
[White "Elshan1985"]
[Black "ljuks68"]
[Result "1-0"]
[WhiteElo "2897"]
[BlackElo "2452"]
[TimeControl "180+1"]
[EndTime "10:05:12 PDT"]
[Termination "Elshan1985 won by resignation"]

1. Nf3 {[%clk 0:02:49.5]} 1... d5 {[%clk 0:02:59.3]} 2. g3 {[%clk 0:02:49.4]}
2... Nc6 {[%clk 0:02:59.1]} 3. Bg2 {[%clk 0:02:50.3]} 3... e5 {[%clk 0:02:58.6]}
4. d3 {[%clk 0:02:50.5]} 4... Bg4 {[%clk 0:02:58.3]} 5. h3 {[%clk 0:02:50.4]}
5... Be6 {[%clk 0:02:57.6]} 6. c3 {[%clk 0:02:47.9]} 6... f6 {[%clk 0:02:57.4]}
7. b4 {[%clk 0:02:47.7]} 7... Qd7 {[%clk 0:02:56.4]} 8. b5 {[%clk 0:02:47.3]}
8... Nce7 {[%clk 0:02:45.8]} 9. a4 {[%clk 0:02:47.8]} 9... Ng6 {[%clk
0:02:42.8]} 10. h4 {[%clk 0:02:46.5]} 10... Bd6 {[%clk 0:02:40.3]} 11. Nbd2
{[%clk 0:02:41.5]} 11... h6 {[%clk 0:02:36.1]} 12. c4 {[%clk 0:02:32.5]} 12...
d4 {[%clk 0:02:27]} 13. Qc2 {[%clk 0:02:21.1]} 13... f5 {[%clk 0:02:25]} 14. c5
{[%clk 0:02:20.1]} 14... Be7 {[%clk 0:02:23.8]} 15. h5 {[%clk 0:02:20.4]} 15...
Nf8 {[%clk 0:02:22.7]} 16. Nxe5 {[%clk 0:02:20.4]} 16... Qc8 {[%clk 0:02:18.5]}
17. Bb2 {[%clk 0:02:20.4]} 17... Nd7 {[%clk 0:02:13.6]} 18. Bxd4 {[%clk
0:02:18]} 18... Nxe5 {[%clk 0:02:13.1]} 19. Bxe5 {[%clk 0:02:18]} 19... Nf6
{[%clk 0:02:13.6]} 20. d4 {[%clk 0:02:06.3]} 20... O-O {[%clk 0:02:11]} 21. Nc4
{[%clk 0:01:57.8]} 21... Bd5 {[%clk 0:02:05.9]} 22. Bxd5+ {[%clk 0:01:57.1]}
22... Nxd5 {[%clk 0:02:05.9]} 23. Ne3 {[%clk 0:01:57.6]} 23... Nxe3 {[%clk
0:02:04.9]} 24. fxe3 {[%clk 0:01:58.5]} 24... Bf6 {[%clk 0:02:01.5]} 25. Bf4
{[%clk 0:01:55.7]} 25... Qe8 {[%clk 0:01:54.2]} 26. Qxf5 {[%clk 0:01:46.9]}
26... Rd8 {[%clk 0:01:44.7]} 27. Qg6 {[%clk 0:01:46.3]} 27... Qe6 {[%clk
0:01:40.5]} 28. O-O {[%clk 0:01:34.7]} 28... Kh8 {[%clk 0:01:32.3]} 29. Be5
{[%clk 0:01:26.7]} 29... Qb3 {[%clk 0:01:22.3]} 30. Rxf6 {[%clk 0:00:55.8]}
30... Qxe3+ {[%clk 0:01:17.7]} 31. Kh1 {[%clk 0:00:50.5]} 1-0

[Event "*** Titled Tuesday Blitz"]
[Site "Chess.com"]
[Date "2021.04.27"]
[Round "1"]
[White "gisela_roque"]
[Black "m_ezat"]
[Result "0-1"]
[WhiteElo "1882"]
[BlackElo "2482"]
[TimeControl "180+1"]
[EndTime "10:05:13 PDT"]
[Termination "m_ezat won by resignation"]

1. c4 {[%clk 0:03:00.3]} 1... Nf6 {[%clk 0:02:58.3]} 2. Nf3 {[%clk 0:02:59.4]}
2... g6 {[%clk 0:02:58.3]} 3. g3 {[%clk 0:02:58.7]} 3... Bg7 {[%clk 0:02:58.4]}
4. Bg2 {[%clk 0:02:58]} 4... O-O {[%clk 0:02:58.8]} 5. O-O {[%clk 0:02:57.4]}
5... c5 {[%clk 0:02:58.2]} 6. Nc3 {[%clk 0:02:57.1]} 6... d5 {[%clk 0:02:58.6]}
7. cxd5 {[%clk 0:02:56.8]} 7... Nxd5 {[%clk 0:02:59.1]} 8. Nxd5 {[%clk 0:02:55]}
8... Qxd5 {[%clk 0:02:59.2]} 9. d3 {[%clk 0:02:53.1]} 9... Nc6 {[%clk
0:02:59.2]} 10. a3 {[%clk 0:02:50.3]} 10... b6 {[%clk 0:02:53.4]} 11. Rb1 {[%clk
0:02:27.5]} 11... Bb7 {[%clk 0:02:52.1]} 12. b4 {[%clk 0:02:20.5]} 12... cxb4
{[%clk 0:02:48.2]} 13. axb4 {[%clk 0:02:20.2]} 13... Nd4 {[%clk 0:02:34]} 14.
Nh4 {[%clk 0:02:13.7]} 14... Qd7 {[%clk 0:02:31.3]} 15. Bxb7 {[%clk 0:02:03.3]}
15... Qxb7 {[%clk 0:02:30.8]} 16. e3 {[%clk 0:02:03.5]} 16... Nb5 {[%clk
0:02:26]} 17. Bb2 {[%clk 0:01:59.4]} 17... Bxb2 {[%clk 0:02:22]} 18. Rxb2 {[%clk
0:02:00.3]} 18... e5 {[%clk 0:02:21.3]} 19. Qf3 {[%clk 0:01:53.4]} 19... Qxf3
{[%clk 0:02:19.8]} 20. Nxf3 {[%clk 0:01:54.3]} 20... f6 {[%clk 0:02:16.3]} 21.
Rc1 {[%clk 0:01:53.3]} 21... Rfd8 {[%clk 0:02:14.9]} 22. Rd2 {[%clk 0:01:41.1]}
22... Rac8 {[%clk 0:01:57.4]} 23. Rxc8 {[%clk 0:01:40.2]} 23... Rxc8 {[%clk
0:01:57.5]} 24. d4 {[%clk 0:01:40.5]} 24... e4 {[%clk 0:01:52]} 25. Nh4 {[%clk
0:01:32.2]} 25... Nc3 {[%clk 0:01:42.5]} 26. Kg2 {[%clk 0:01:30.6]} 26... Nd5
{[%clk 0:01:41.8]} 27. Ra2 {[%clk 0:01:22.4]} 27... Rc7 {[%clk 0:01:29.1]} 28.
b5 {[%clk 0:01:20]} 28... Kf7 {[%clk 0:01:25.3]} 29. Rb2 {[%clk 0:01:05.8]}
29... Ke6 {[%clk 0:01:22.5]} 30. Kf1 {[%clk 0:01:03.4]} 30... Rc1+ {[%clk
0:01:15.8]} 31. Kg2 {[%clk 0:01:02.7]} 31... g5 {[%clk 0:01:14.2]} 0-1

[Event "*** Titled Tuesday Blitz"]
[Site "Chess.com"]
[Date "2021.04.27"]
[Round "1"]
[White "MeekinsKris"]
[Black "TomasKapitanchuk"]
[Result "0-1"]
[WhiteElo "2199"]
[BlackElo "2542"]
[TimeControl "180+1"]
[EndTime "10:05:18 PDT"]
[Termination "TomasKapitanchuk won by resignation"]

1. e4 {[%clk 0:03:00.9]} 1... c5 {[%clk 0:02:57.3]} 2. d4 {[%clk 0:03:00.5]}
2... cxd4 {[%clk 0:02:57.4]} 3. c3 {[%clk 0:03:00.8]} 3... Nf6 {[%clk
0:02:57.9]} 4. e5 {[%clk 0:03:00.7]} 4... Nd5 {[%clk 0:02:58.5]} 5. Qxd4 {[%clk
0:03:01.1]} 5... e6 {[%clk 0:02:52.4]} 6. Nf3 {[%clk 0:03:00.5]} 6... Nc6 {[%clk
0:02:50.8]} 7. Qe4 {[%clk 0:03:00.7]} 7... f5 {[%clk 0:02:51.2]} 8. Qe2 {[%clk
0:03:00.1]} 8... b5 {[%clk 0:02:50.3]} 9. g3 {[%clk 0:02:59.4]} 9... a5 {[%clk
0:02:47.9]} 10. Bg2 {[%clk 0:02:59.2]} 10... Ba6 {[%clk 0:02:47.9]} 11. O-O
{[%clk 0:02:59.4]} 11... Be7 {[%clk 0:02:47.4]} 12. Rd1 {[%clk 0:02:57.9]} 12...
O-O {[%clk 0:02:47]} 13. Nbd2 {[%clk 0:02:50.9]} 13... Qb8 {[%clk 0:02:44.8]}
14. Nf1 {[%clk 0:02:45.7]} 14... b4 {[%clk 0:02:38.5]} 15. c4 {[%clk 0:02:41.2]}
15... b3 {[%clk 0:02:38.9]} 16. a3 {[%clk 0:02:35.5]} 16... Nb6 {[%clk
0:02:34.1]} 17. N1d2 {[%clk 0:01:56.4]} 17... a4 {[%clk 0:02:33.9]} 18. Bf1
{[%clk 0:01:44.1]} 18... Na5 {[%clk 0:02:30.3]} 19. Qe3 {[%clk 0:01:37.7]} 19...
Rc8 {[%clk 0:02:27.5]} 20. h4 {[%clk 0:01:22.3]} 20... Rc5 {[%clk 0:02:10.7]}
21. Nb1 {[%clk 0:01:19.5]} 21... Naxc4 {[%clk 0:02:09.5]} 22. Qf4 {[%clk
0:01:17.7]} 22... Nxe5 {[%clk 0:02:04.3]} 23. Nc3 {[%clk 0:01:13.1]} 23... Bxf1
{[%clk 0:02:00]} 24. Kxf1 {[%clk 0:01:11.3]} 24... Nxf3 {[%clk 0:01:57.4]} 25.
Qxf3 {[%clk 0:01:11]} 25... d5 {[%clk 0:01:51.1]} 26. Be3 {[%clk 0:01:09.5]}
26... Rc6 {[%clk 0:01:49.1]} 27. Bxb6 {[%clk 0:00:56.9]} 27... Qxb6 {[%clk
0:01:45.3]} 28. Re1 {[%clk 0:00:53.9]} 28... Bf6 {[%clk 0:01:39]} 29. Rac1
{[%clk 0:00:47.6]} 29... Rac8 {[%clk 0:01:31.8]} 30. Nxa4 {[%clk 0:00:37.2]}
30... Qb5+ {[%clk 0:01:30.6]} 0-1

[Event "*** Titled Tuesday Blitz"]
[Site "Chess.com"]
[Date "2021.04.27"]
[Round "1"]
[White "attack2mateU"]
[Black "fabianvivasz"]
[Result "1-0"]
[WhiteElo "2717"]
[BlackElo "2382"]
[TimeControl "180+1"]
[EndTime "10:05:22 PDT"]
[Termination "attack2mateU won by resignation"]

1. e4 {[%clk 0:02:59.5]} 1... e5 {[%clk 0:02:57.2]} 2. Nf3 {[%clk 0:02:59.5]}
2... Nc6 {[%clk 0:02:56.8]} 3. Bc4 {[%clk 0:03:00]} 3... Nf6 {[%clk 0:02:56.3]}
4. Ng5 {[%clk 0:02:59.8]} 4... d5 {[%clk 0:02:54]} 5. exd5 {[%clk 0:03:00.7]}
5... b5 {[%clk 0:02:53.6]} 6. Bf1 {[%clk 0:03:00.1]} 6... Nd4 {[%clk 0:02:53.1]}
7. c3 {[%clk 0:02:58.8]} 7... Nxd5 {[%clk 0:02:53.3]} 8. cxd4 {[%clk 0:02:57.8]}
8... Qxg5 {[%clk 0:02:52.7]} 9. Bxb5+ {[%clk 0:02:58.3]} 9... Kd8 {[%clk
0:02:52.4]} 10. O-O {[%clk 0:02:58]} 10... Bb7 {[%clk 0:02:30.8]} 11. Qf3 {[%clk
0:02:56.2]} 11... Rb8 {[%clk 0:02:24.2]} 12. dxe5 {[%clk 0:02:40.2]} 12... Ne3
{[%clk 0:01:53.8]} 13. Qh3 {[%clk 0:02:40]} 13... Qxg2+ {[%clk 0:00:54.7]} 14.
Qxg2 {[%clk 0:02:39.9]} 14... Nxg2 {[%clk 0:00:55.1]} 15. d4 {[%clk 0:02:35.7]}
15... Be7 {[%clk 0:00:48.1]} 16. Be2 {[%clk 0:02:34.1]} 16... f6 {[%clk
0:00:22.8]} 17. f4 {[%clk 0:02:11.1]} 17... c5 {[%clk 0:00:18.6]} 18. d5 {[%clk
0:02:09.7]} 18... fxe5 {[%clk 0:00:10.2]} 19. Kxg2 {[%clk 0:02:08.3]} 19...
Bxd5+ {[%clk 0:00:07.6]} 20. Kg3 {[%clk 0:02:02.6]} 20... Kc7 {[%clk 0:00:04.7]}
21. Nc3 {[%clk 0:02:01.8]} 21... Bc6 {[%clk 0:00:04.4]} 22. fxe5 {[%clk
0:02:01.1]} 22... Rhf8 {[%clk 0:00:03.6]} 23. Rxf8 {[%clk 0:01:57]} 23... Rxf8
{[%clk 0:00:04.5]} 24. Be3 {[%clk 0:01:54.7]} 24... g6 {[%clk 0:00:04.3]} 25.
Rd1 {[%clk 0:01:53.6]} 25... h5 {[%clk 0:00:04.3]} 26. Nd5+ {[%clk 0:01:52.1]}
26... Bxd5 {[%clk 0:00:04.7]} 27. Rxd5 {[%clk 0:01:52.7]} 27... Kc6 {[%clk
0:00:04.8]} 28. Rd1 {[%clk 0:01:48.3]} 28... h4+ {[%clk 0:00:04.1]} 29. Kg4
{[%clk 0:01:47.7]} 1-0